[Event "Portuguese-ch U10-12 2022"]
[Site "Fatima"]
[Date "2022.04.13"]
[Round "6.3"]
[White "Faryma, Matviy"]
[Black "Almeida, Diogo Rodrigues Sant"]
[Result "1-0"]
[ECO "C01"]
[WhiteElo "1426"]
[BlackElo "1467"]
[Annotator "NA RC"]
[PlyCount "39"]
[EventDate "2022.04.10"]
[EventType "swiss"]
[EventCountry "POR"]
[SourceTitle "playchess.com"]
[Source "ChessBase"]
[SourceQuality "1"]
[TimeControl "5400+30"]

1. e4 {[%emt 0:00:03]} e6 2. d4 {[%emt 0:01:58]} d5 {[%emt 0:00:11]} 3. exd5 {[%emt 0:00:10]} exd5 {[%emt 0:00:05]} 4. Nf3 {[%emt 0:00:20]} Nf6 {[%emt 0:03:00]} 5. Bd3 {[%emt 0:00:55]} Bd6 {[%emt 0:00:54]} 6. h3 {[%emt 0:00:18]} O-O {[%emt 0:01:19]} 7. O-O {[%emt 0:00:09]} Nbd7 {[%emt 0:02:59]} 8. Bg5 {[%emt 0:01:52]} h6 {[%emt 0:01:04]} 9. Bh4 {[%emt 0:00:10]} c5 {[%emt 0:05:44]} 10. dxc5 {[%emt 0:03:44]} Nxc5 {[%emt 0:00:51]} 11. Nc3 {[%emt 0:00:18]} Nxd3 {[%emt 0:02:22]} 12. Qxd3 {[%emt 0:00:17]} Be6 {[%emt 0:00:52]} 13. Nd4 {[%emt 0:03:09]} a6 {[%emt 0:03:11]} 14. Rfe1 {[%emt 0:02:17]} Re8 {[%emt 0:02:09]} 15. Nxe6 {[%emt 0:07:10]} fxe6 {[%emt 0:00:41]} 16. Qg6 {[%emt 0:00:30]} b5 {[%emt 0:05:43]} 17. Ne2 {[%emt 0:03:02]} Be7 {[%emt 0:03:58]} 18. Nf4 {[%emt 0:02:15]} Qb6 {[%emt 0:02:59]} 19. Rxe6 {[%emt 0:03:12]} Qd4 {[%emt 0:00:42]} 20. Bxf6 {[%emt 0:00:45]} 1-0

[Event "Portuguese-ch U10-12 2022"]
[Site "Fatima"]
[Date "2022.04.13"]
[Round "6.4"]
[White "Tarelho, Bruna Silva"]
[Black "Cymbron, Victoria"]
[Result "0-1"]
[ECO "B10"]
[WhiteElo "1187"]
[BlackElo "1494"]
[Annotator "NA RC"]
[PlyCount "116"]
[EventDate "2022.04.10"]
[EventType "swiss"]
[EventCountry "POR"]
[SourceTitle "playchess.com"]
[Source "ChessBase"]
[SourceQuality "1"]
[TimeControl "5400+30"]

1. e4 c6 2. Nf3 d5 3. Nc3 dxe4 {[%emt 0:00:31]} 4. Nxe4 {[%emt 0:00:49]} Bf5 {[%emt 0:00:54]} 5. Ng3 {[%emt 0:01:13]} Bg6 {[%emt 0:00:10]} 6. h4 {[%emt 0:00:51]} h6 {[%emt 0:00:55]} 7. Ne5 {[%emt 0:00:51]} Bh7 {[%emt 0:01:44]} 8. Qh5 {[%emt 0:01:15]} g6 {[%emt 0:01:22]} 9. Bc4 {[%emt 0:00:57]} e6 {[%emt 0:00:31]} 10. Qe2 {[%emt 0:01:43]} Qe7 {[%emt 0:03:08]} 11. c3 {[%emt 0:05:31]} Bg7 {[%emt 0:02:51]} 12. Nf3 {[%emt 0:03:42]} Nd7 {[%emt 0:00:43]} 13. d4 {[%emt 0:01:25]} Ngf6 {[%emt 0:04:01]} 14. Be3 {[%emt 0:07:11]} Nd5 {[%emt 0:02:28]} 15. Bb3 {[%emt 0:02:43]} N7b6 {[%emt 0:05:45]} 16. O-O-O {[%emt 0:05:17]} O-O-O {[%emt 0:01:31]} 17. Bd2 {[%emt 0:07:46]} Qc7 {[%emt 0:10:15]} 18. Rhe1 {[%emt 0:11:30]} Nf4 {[%emt 0:03:33]} 19. Bxf4 {[%emt 0:00:31]} Qxf4+ {[%emt 0:00:14]} 20. Qd2 {[%emt 0:00:37]} Qxd2+ 21. Nxd2 {[%emt 0:00:16]} g5 {[%emt 0:03:27]} 22. Nh5 {[%emt 0:05:25]} Rhg8 {[%emt 0:01:21]} 23. hxg5 {[%emt 0:01:43]} hxg5 {[%emt 0:00:58]} 24. g4 {[%emt 0:04:41]} Nd5 {[%emt 0:04:19]} 25. Bxd5 {[%emt 0:03:40]} cxd5 {[%emt 0:00:51]} 26. Nf3 {[%emt 0:02:57]} Be4 {[%emt 0:02:33]} 27. Ng1 {[%emt 0:07:34]} Kb8 {[%emt 0:07:33]} 28. f3 {[%emt 0:01:57]} Bg6 {[%emt 0:00:27]} 29. Nxg7 {[%emt 0:00:15]} Rxg7 {[%emt 0:00:12]} 30. Nh3 {[%emt 0:01:07]} Rh7 {[%emt 0:02:51]} 31. Nxg5 {[%emt 0:02:47]} Rh2 {[%emt 0:00:21]} 32. Rd2 {[%emt 0:00:23]} Rdh8 {[%emt 0:01:18]} 33. Rde2 {[%emt 0:05:20]} b5 {[%emt 0:10:46]} 34. Kd2 {[%emt 0:03:38]} a5 {[%emt 0:05:13]} 35. Rxh2 {[%emt 0:01:11]} Rxh2+ {[%emt 0:00:12]} 36. Re2 {[%emt 0:00:08]} Rh1 {[%emt 0:01:01]} 37. a3 {[%emt 0:02:10]} Kc7 {[%emt 0:01:48]} 38. f4 {[%emt 0:01:25]} Rg1 {[%emt 0:01:52]} 39. f5 {[%emt 0:03:54]} exf5 {[%emt 0:00:11]} 40. gxf5 {[%emt 0:00:49]} Rxg5 {[%emt 0:01:23]} 41. fxg6 {[%emt 0:00:24]} fxg6 {[%emt 0:00:11]} 42. Rf2 {[%emt 0:00:52]} Rf5 {[%emt 0:00:17]} 43. Rxf5 {[%emt 0:01:45]} gxf5 {[%emt 0:00:07]} 44. Ke3 {[%emt 0:00:29]} Kd6 {[%emt 0:00:49]} 45. b3 {[%emt 0:00:54]} Ke6 {[%emt 0:00:54]} 46. Kf3 {[%emt 0:02:16]} Kf7 {[%emt 0:00:43]} 47. c4 {[%emt 0:00:57]} dxc4 {[%emt 0:00:41]} 48. bxc4 {[%emt 0:00:31]} bxc4 {[%emt 0:00:07]} 49. d5 {[%emt 0:00:34]} c3 {[%emt 0:00:42]} 50. Ke3 {[%emt 0:00:04]} f4+ {[%emt 0:00:26]} 51. Kd3 {[%emt 0:00:32]} f3 {[%emt 0:00:09]} 52. Kxc3 {[%emt 0:00:36]} f2 {[%emt 0:00:07]} 53. Kc4 {[%emt 0:00:18]} f1=Q+ {[%emt 0:00:11]} 54. Kc5 {[%emt 0:00:10]} Ke7 {[%emt 0:00:14]} 55. Kb6 {[%emt 0:00:35]} Kd6 {[%emt 0:00:23]} 56. Kxa5 {[%emt 0:00:12]} Kc5 {[%emt 0:00:09]} 57. a4 {[%emt 0:00:20]} Qf8 {[%emt 0:00:15]} 58. Ka6 {[%emt 0:00:28]} Qa8# {[%emt 0:00:06]} 0-1

[Event "Portuguese-ch U10-12 2022"]
[Site "Fatima"]
[Date "2022.04.13"]
[Round "6.5"]
[White "Pinto, Jose Joao Meireles A"]
[Black "Vicente, Joao Vasco Reis"]
[Result "0-1"]
[ECO "D02"]
[WhiteElo "1288"]
[BlackElo "2092"]
[Annotator "NA RC"]
[PlyCount "116"]
[EventDate "2022.04.10"]
[EventType "swiss"]
[EventCountry "POR"]
[SourceTitle "playchess.com"]
[Source "ChessBase"]
[SourceQuality "1"]
[TimeControl "5400+30"]

1. d4 {[%emt 0:01:46]} Nf6 {[%emt 0:00:08]} 2. Bf4 {[%emt 0:00:09]} d5 {[%emt 0:01:14]} 3. Nf3 {[%emt 0:00:20]} g6 {[%emt 0:00:48]} 4. h3 {[%emt 0:00:21]} Bg7 {[%emt 0:00:09]} 5. e3 {[%emt 0:00:18]} O-O {[%emt 0:02:02]} 6. Be2 {[%emt 0:00:23]} Be6 {[%emt 0:02:23]} 7. Nbd2 {[%emt 0:01:17]} Nbd7 {[%emt 0:03:07]} 8. O-O {[%emt 0:03:00]} c5 {[%emt 0:02:06]} 9. c3 {[%emt 0:04:12]} c4 {[%emt 0:04:39]} 10. Ng5 {[%emt 0:03:11]} h6 {[%emt 0:03:58]} 11. Nxe6 {[%emt 0:02:43]} fxe6 {[%emt 0:00:54]} 12. Qc2 {[%emt 0:06:05]} g5 {[%emt 0:11:05]} 13. Bg3 {[%emt 0:02:07]} Nh7 {[%emt 0:06:13]} 14. Bf3 {[%emt 0:14:45]} Kh8 {[%emt 0:04:14]} 15. e4 {[%emt 0:03:43]} Ndf6 {[%emt 0:06:31]} 16. b3 {[%emt 0:08:42]} b5 {[%emt 0:00:47]} 17. bxc4 {[%emt 0:02:57]} bxc4 {[%emt 0:00:43]} 18. exd5 {[%emt 0:07:08]} exd5 {[%emt 0:01:06]} 19. Nxc4 $2 {[%emt 0:04:02]} dxc4 {[%emt 0:04:55]} 20. Bxa8 {[%emt 0:00:13]} Qxa8 {[%emt 0:00:33]} 21. Qe2 {[%emt 0:00:19]} Ne4 {[%emt 0:02:21]} 22. Qe3 {[%emt 0:05:39]} Nhf6 {[%emt 0:03:19]} 23. Bh2 $1 {[%emt 0:02:03]} Re8 {[%emt 0:03:00]} ({Black should try} 23... g4 $15) 24. f3 {[%emt 0:01:53]} (24. Rfe1 {might be stronger.}) 24... Nd6 {[%emt 0:01:08]} 25. f4 {[%emt 0:04:09]} (25. Rae1 $1 $11) 25... Nd5 {[%emt 0:02:51]} 26. Qc1 {[%emt 0:00:30]} (26. Qe6 $17 {is a better defense.} g4 27. hxg4 Nxc3 28. Rae1) 26... Nb5 {[%emt 0:00:30]} 27. Rf3 {[%emt 0:06:02]} Ndxc3 {[%emt 0:05:17]} 28. Rxc3 {[%emt 0:05:14]} Bxd4+ {[%emt 0:00:30] Pin, Double Attack} 29. Kh1 {[%emt 0:00:05]} Nxc3 {[%emt 0:01:54]} 30. Qd2 {[%emt 0:02:32]} Bf6 {[%emt 0:02:33]} 31. fxg5 {[%emt 0:01:18]} Ne4 {[%emt 0:01:07]} 32. Qe1 {[%emt 0:00:22]} Bxa1 {[%emt 0:01:44]} 33. Qxa1+ {[%emt 0:00:10]} c3 {[%emt 0:00:19]} 34. Be5+ {[%emt 0:00:14]} Kg8 {[%emt 0:00:44]} 35. Bxc3 {[%emt 0:00:10]} Nxc3 {[%emt 0:00:46]} 36. gxh6 {[%emt 0:00:11]} Qc6 {[%emt 0:03:32]} 37. Qc1 {[%emt 0:00:37]} Qf6 {[%emt 0:01:00]} 38. g4 {[%emt 0:02:26]} Rf8 {[%emt 0:01:10]} 39. Kg2 {[%emt 0:00:31]} Qf3+ {[%emt 0:00:33]} 40. Kh2 {[%emt 0:00:16]} Qf2+ {[%emt 0:00:17]} 41. Kh1 {[%emt 0:00:13]} Qf1+ {[%emt 0:01:31]} 42. Qxf1 {[%emt 0:00:10]} Rxf1+ {[%emt 0:00:05]} 43. Kg2 {[%emt 0:00:07]} Rf6 {[%emt 0:00:42]} 44. g5 {[%emt 0:00:08]} Rg6 {[%emt 0:00:17]} 45. h4 {[%emt 0:00:16]} Ne4 {[%emt 0:00:21]} 46. Kh3 {[%emt 0:00:45]} Nxg5+ {[%emt 0:00:25]} 47. hxg5 {[%emt 0:00:28]} Rxg5 {[%emt 0:00:07]} 48. Kh4 {[%emt 0:00:05]} Rg6 {[%emt 0:00:21]} 49. Kh5 {[%emt 0:00:14]} Kh7 {[%emt 0:00:04]} 50. Kh4 {[%emt 0:00:07]} Kxh6 {[%emt 0:01:00]} 51. a4 {[%emt 0:00:09]} Kg7 {[%emt 0:00:15]} 52. a5 {[%emt 0:00:40]} Kf6 {[%emt 0:00:06]} 53. Kh5 {[%emt 0:00:08]} Rg8 {[%emt 0:00:17]} 54. a6 {[%emt 0:00:09]} e6 {[%emt 0:00:10]} 55. Kh4 {[%emt 0:00:12]} Kf5 {[%emt 0:00:07]} 56. Kh3 {[%emt 0:00:18]} Kf4 {[%emt 0:00:05]} 57. Kh2 {[%emt 0:00:07]} Kf3 58. Kh1 {[%emt 0:00:24]} Kf2 {[%emt 0:00:10]} 0-1

[Event "Portuguese-ch U10-12 2022"]
[Site "Fatima"]
[Date "2022.04.13"]
[Round "6.6"]
[White "Savchenko, Alexandr"]
[Black "Frolov, Ilya"]
[Result "0-1"]
[ECO "A46"]
[WhiteElo "2130"]
[BlackElo "1271"]
[Annotator "TA"]
[PlyCount "49"]
[EventDate "2022.04.10"]
[EventType "swiss"]
[EventCountry "POR"]
[SourceTitle "playchess.com"]
[Source "ChessBase"]
[SourceQuality "1"]
[TimeControl "5400+30"]

{[%evp 12,49,7,7,19,8,19,17,31,-72,32,21,39,25,31,2,0,-3,0,-44,-71,-141,-33,-35,52,27,38,46,47,18,31,-41,-39,-410,-423,-420,-420,-424,-415,-425]} 1. d4 Nf6 2. Nf3 e6 3. Bf4 {[%emt 0:00:40]} d5 {[%emt 0:01:00]} 4. c3 {[%emt 0:00:36]} c5 {[%emt 0:00:09]} 5. e3 {[%emt 0:00:36]} Nc6 {[%emt 0:00:42]} 6. Nbd2 {[%emt 0:00:30]} Be7 {[%emt 0:02:58] Recently 6...cxd4 got a lot of attention.} 7. h3 {[%emt 0:01:45]} h6 {[%emt 0:05:45] [#] D02: 1 d4 d5 2 Nf3 sidelines, including 2...Nf6 3 g3 and 2...Nf6 3 Bf4.} 8. Bb5 $146 {[%emt 0:00:43][%cal Bf1b5,Bb5a4,Ba4c2][%mdl 32]} ({Predecessor:} 8. Bd3 c4 9. Bc2 b5 10. a3 O-O 11. g4 Nd7 12. h4 g6 13. Bxh6 Re8 14. Bf4 {1-0 (24) Grachev,B (2615)-Cunha,L (2290) Chess.com INT 2021}) 8... Bd7 {[%emt 0:01:08]} 9. O-O {[%emt 0:00:43]} O-O {[%emt 0:00:08][%cal Oc6d4] The position is equal.} 10. Re1 {[%emt 0:00:09] [#]} (10. Ba4 $14 {keeps the upper hand.}) 10... a6 {[%emt 0:00:38]} ({Black should play} 10... Nxd4 $1 $17 11. exd4 (11. Nxd4 cxd4 12. Bxd7 dxc3 $17) (11. Bd3 Nxf3+) 11... Bxb5) 11. Ba4 $14 {[%emt 0:01:00]} b5 {[%emt 0:01:23]} 12. Bc2 {[%emt 0:00:36]} b4 {[%emt 0:02:09]} 13. Ba4 {[%emt 0:02:16]} bxc3 {[%emt 0:03:38]} 14. bxc3 {[%emt 0:00:18]} Qa5 {[%emt 0:02:35]} 15. Bc2 {[%emt 0:00:52]} Qxc3 {[%emt 0:04:04]} 16. Rb1 {[%emt 0:00:41]} (16. Rc1 $142 Qa3 17. Ne5) 16... Qa5 {[%emt 0:02:19]} (16... c4 $17 {And now ...Nb4 would win.} 17. Ne5 Ra7 18. Nxc6 Bxc6) 17. Nb3 $15 {[%emt 0:02:26][%mdl 64] Deflection} Qd8 {[%emt 0:03:07]} (17... Qa3 $15 18. Nxc5 Bxc5 19. dxc5 Qxc5) 18. Nxc5 $14 {[%emt 0:00:40]} Bxc5 {[%emt 0:00:07]} 19. dxc5 {[%emt 0:00:15]} Qa5 {[%emt 0:02:47][%csl LRa2,LRc5]} 20. Bd6 {[%emt 0:00:45] This bishop pair is nice.} Rfd8 {[%emt 0:02:11]} 21. Qd3 {[%emt 0:01:44]} ({Better is} 21. Rb7 $14) 21... Ne4 $1 $15 {[%emt 0:04:19][%cal Bf6e4,Be4d2,Bd2c4][%mdl 32]} 22. Nd2 $2 {[%emt 0:02:10][%mdl 8192] Now White is beyond hope.} Qxd2 $19 {[%emt 0:05:09]} 23. Qxd2 {[%emt 0:00:17]} Nxd2 {[%emt 0:00:08]} 24. Rb7 {[%emt 0:00:10]} Nc4 {[%emt 0:01:32]} 25. Bc7 {[%emt 0:00:32] Weighted Error Value: White=0.73/Black=0.37} 0-1

[Event "Portuguese-ch U10-12 2022"]
[Site "Fatima"]
[Date "2022.04.13"]
[Round "6.7"]
[White "Moldovan, Lucas Gabriel"]
[Black "Adhya, Havir"]
[Result "1-0"]
[ECO "C54"]
[WhiteElo "1575"]
[BlackElo "1216"]
[Annotator "NA RC"]
[PlyCount "69"]
[EventDate "2022.04.10"]
[EventType "swiss"]
[EventCountry "POR"]
[SourceTitle "playchess.com"]
[Source "ChessBase"]
[SourceQuality "1"]
[TimeControl "5400+30"]

1. e4 {[%emt 0:00:23]} e5 2. Nf3 {[%emt 0:00:14]} Nc6 {[%emt 0:00:32]} 3. Bc4 {[%emt 0:00:19]} Bc5 {[%emt 0:00:08]} 4. c3 {[%emt 0:00:20]} Nf6 {[%emt 0:02:22]} 5. d3 {[%emt 0:00:34]} d6 {[%emt 0:00:26]} 6. O-O {[%emt 0:00:09]} h6 {[%emt 0:00:22]} 7. Re1 {[%emt 0:01:25]} Be6 {[%emt 0:00:42]} 8. Bb3 {[%emt 0:00:31]} O-O {[%emt 0:00:42]} 9. Bc2 {[%emt 0:01:18]} Ne7 {[%emt 0:00:49]} 10. d4 {[%emt 0:01:39]} exd4 {[%emt 0:00:30]} 11. cxd4 {[%emt 0:00:40]} Bb4 {[%emt 0:00:26]} 12. Bd2 {[%emt 0:00:25]} Bxd2 {[%emt 0:00:43]} 13. Nbxd2 {[%emt 0:00:29]} Ng6 {[%emt 0:00:49]} 14. Nf1 {[%emt 0:03:07]} c6 {[%emt 0:02:57]} 15. Ng3 {[%emt 0:04:55]} Re8 {[%emt 0:04:53]} 16. Bb3 {[%emt 0:07:30]} Qb6 {[%emt 0:02:47]} 17. Bxe6 {[%emt 0:10:27]} fxe6 {[%emt 0:02:10]} 18. Qc2 {[%emt 0:05:09]} d5 {[%emt 0:06:25]} 19. e5 {[%emt 0:00:49]} Ne4 {[%emt 0:02:08]} 20. Nxe4 {[%emt 0:00:12]} dxe4 {[%emt 0:00:09]} 21. Qxe4 {[%emt 0:00:09]} Ne7 {[%emt 0:01:03]} 22. Nd2 {[%emt 0:05:42]} Qxb2 {[%emt 0:03:28]} 23. Nc4 {[%emt 0:00:58]} Qc3 {[%emt 0:05:42]} 24. Rec1 {[%emt 0:00:27]} Qb4 {[%emt 0:00:16]} 25. Rab1 {[%emt 0:00:09]} Qa4 {[%emt 0:00:33]} 26. Qg4 {[%emt 0:01:54]} Nf5 {[%emt 0:02:17]} 27. Rxb7 {[%emt 0:02:04]} Rab8 {[%emt 0:01:32]} 28. Qg6 {[%emt 0:03:04]} c5 {[%emt 0:05:11]} 29. Rxb8 {[%emt 0:01:10]} Rxb8 {[%emt 0:00:16]} 30. Qxe6+ {[%emt 0:00:02]} Kh8 {[%emt 0:00:52]} 31. Qxf5 {[%emt 0:00:07]} cxd4 {[%emt 0:01:59]} 32. h4 {[%emt 0:02:59]} Qxa2 {[%emt 0:05:32]} 33. e6 {[%emt 0:00:52]} Re8 {[%emt 0:01:29]} 34. e7 {[%emt 0:00:10]} Qa4 {[%emt 0:00:28]} 35. Nd6 {[%emt 0:00:28]} 1-0

[Event "Portuguese-ch U10-12 2022"]
[Site "Fatima"]
[Date "2022.04.13"]
[Round "6.8"]
[White "Filipe, Gustavo Castro"]
[Black "Castro, Daniel De Freitas"]
[Result "1/2-1/2"]
[ECO "B76"]
[WhiteElo "1401"]
[BlackElo "2036"]
[Annotator "RC"]
[PlyCount "78"]
[EventDate "2022.04.10"]
[EventType "swiss"]
[EventCountry "POR"]
[SourceTitle "playchess.com"]
[Source "ChessBase"]
[SourceQuality "1"]
[TimeControl "5400+30"]

1. e4 {[%emt 0:00:04]} c5 {[%emt 0:00:12]} 2. Nf3 {[%emt 0:00:05]} d6 {[%emt 0:00:07]} 3. d4 cxd4 4. Nxd4 {[%emt 0:00:16]} Nf6 {[%emt 0:00:16]} 5. Nc3 {[%emt 0:00:32]} g6 {[%emt 0:00:12]} 6. Be3 {[%emt 0:00:42]} Bg7 {[%emt 0:00:10]} 7. f3 {[%emt 0:00:39]} O-O {[%emt 0:00:26]} 8. Qd2 {[%emt 0:00:07]} Nc6 {[%emt 0:00:59]} 9. O-O-O {[%emt 0:00:23]} d5 {[%emt 0:00:24]} 10. Qe1 {[%emt 0:05:08]} e6 {[%emt 0:01:00]} 11. h4 {[%emt 0:02:10]} Qc7 {[%emt 0:05:04]} 12. Ncb5 {[%emt 0:09:42]} Qa5 {[%emt 0:06:28]} 13. Nxc6 {[%emt 0:00:55]} Qxa2 {[%emt 0:02:31]} 14. Ne7+ {[%emt 0:00:33]} Kh8 {[%emt 0:00:19]} 15. Bd4 {[%emt 0:01:51]} Bd7 {[%emt 0:03:37]} 16. Qc3 {[%emt 0:07:15]} Nh5 {[%emt 0:02:25]} 17. Bxg7+ {[%emt 0:01:29]} Nxg7 {[%emt 0:00:13]} 18. exd5 {[%emt 0:03:03]} exd5 {[%emt 0:01:50]} 19. b3 {[%emt 0:02:17]} Bxb5 {[%emt 0:01:33]} 20. Nxg6+ {[%emt 0:02:50]} fxg6 {[%emt 0:03:34]} 21. Bxb5 {[%emt 0:02:27]} Rac8 {[%emt 0:05:24]} 22. Qb2 {[%emt 0:01:23]} Qxb2+ {[%emt 0:01:53]} 23. Kxb2 {[%emt 0:00:10]} Rc5 {[%emt 0:07:49]} 24. Bd7 {[%emt 0:01:43]} Rf7 {[%emt 0:07:50]} 25. Bg4 {[%emt 0:03:12]} Nf5 {[%emt 0:11:05]} 26. Bxf5 {[%emt 0:00:30]} Rxf5 {[%emt 0:02:38]} 27. Rhe1 {[%emt 0:01:56]} Kg7 {[%emt 0:01:28]} 28. Rd2 {[%emt 0:04:52]} Rf4 {[%emt 0:13:22]} 29. Rde2 {[%emt 0:01:36]} Rf6 {[%emt 0:04:44]} 30. Re5 {[%emt 0:02:49]} b6 {[%emt 0:03:32]} 31. Rd1 {[%emt 0:06:37]} Rf5 {[%emt 0:01:20]} 32. Rxf5 {[%emt 0:00:17]} gxf5 {[%emt 0:00:07]} 33. Re1 {[%emt 0:01:12]} Kf7 {[%emt 0:04:33]} 34. g4 {[%emt 0:00:27]} h6 {[%emt 0:02:28]} 35. c3 {[%emt 0:05:38]} fxg4 {[%emt 0:01:53]} 36. fxg4 {[%emt 0:00:06]} a5 {[%emt 0:00:36]} 37. Rf1+ {[%emt 0:00:51]} Kg7 {[%emt 0:00:23]} 38. g5 {[%emt 0:01:19]} hxg5 {[%emt 0:00:45]} 39. hxg5 {[%emt 0:00:09]} d4 {[%emt 0:00:25]} 1/2-1/2

[Event "Portuguese-ch U10-12 2022"]
[Site "Fatima"]
[Date "2022.04.14"]
[Round "7.1"]
[White "Da Silva, Daniel Leite"]
[Black "Farias, David"]
[Result "1-0"]
[ECO "A37"]
[WhiteElo "2023"]
[BlackElo "1894"]
[Annotator "TA"]
[PlyCount "96"]
[EventDate "2022.04.10"]
[EventType "swiss"]
[EventCountry "POR"]
[SourceTitle "playchess.com"]
[Source "ChessBase"]
[SourceQuality "1"]
[TimeControl "5400+30"]

{[%evp 12,96,7,4,13,13,13,11,9,0,59,35,48,-8,0,-74,-80,-89,-81,-89,-73,-121,-91,-91,0,-3,0,0,29,2,74,72,76,74,170,120,97,99,171,170,358,348,511,77,85,35,28,34,40,42,77,58,72,0,150,156,406,399,390,299,424,328,387,383,697,697,688,539,522,514,501,480,3370,645,12814,5836,10968,4827,29985,29985,29986,29986,29989,29990,29990,29991,29993]} 1. c4 {[%emt 0:05:55]} c5 {[%emt 0:00:10]} 2. g3 {[%emt 0:01:17]} Nc6 {[%emt 0:05:09]} 3. Bg2 {[%emt 0:00:30]} g6 {[%emt 0:01:02]} 4. Nc3 {[%emt 0:02:28]} Bg7 {[%emt 0:00:45]} 5. Nf3 {[%emt 0:00:35]} e5 {[%emt 0:07:55]} 6. O-O {[%emt 0:02:35]} Nge7 {[%emt 0:01:10]} 7. a3 {[%emt 0:05:24][%cal Ob2b4,Ba2a3,Ba3b4][%mdl 32]} f5 {[%emt 0:13:43] A37: Symmetrical English vs ...g6: 4 Bg2 Bg7 5 Nf3.} 8. Rb1 {[%emt 0:17:49]} O-O {[%emt 0:07:11]} 9. b4 {[%emt 0:07:51]} d6 {[%emt 0:05:40] The position is equal.} 10. Ne1 {[%emt 0:19:39]} cxb4 {[%emt 0:09:24]} (10... Rb8 $11) 11. axb4 $14 {[%emt 0:03:05]} Be6 {[%emt 0:01:48] [#]} 12. Bd5 $146 {[%emt 0:02:38]} (12. b5 $14 Na5 13. d3) ({Predecessor:} 12. b5 Na5 13. d3 Rc8 14. Bg5 h6 15. Bd2 b6 16. Nc2 Qd7 17. Nb4 f4 18. Nbd5 {1-0 (43) Modler,A (2279)-Wagner,C (2264) Switzerland 2017}) 12... Bf7 $11 (12... Nxd5 $2 13. cxd5 Bf7 14. dxc6 $18) 13. Nc2 {[%emt 0:06:47]} (13. Bxf7+ $1 $11 {keeps the balance.} Rxf7 14. b5) 13... Nxd5 $17 {[%emt 0:10:08]} 14. Nxd5 {[%emt 0:00:20]} Ne7 {[%emt 0:08:04]} 15. Nxe7+ {[%emt 0:05:09]} Qxe7 {[%emt 0:00:01]} 16. Na3 {[%emt 0:01:02]} (16. d3 $142) 16... d5 {[%emt 0:05:05]} 17. d3 {[%emt 0:00:46]} e4 {[%emt 0:02:00]} (17... f4 $17 {Black wants to play ...Rad8.} 18. Bb2 Be6) 18. c5 $11 {[%emt 0:05:49]} d4 {[%emt 0:07:54]} 19. Bf4 {[%emt 0:05:41]} Be5 {[%emt 0:04:07] Against Bd6} 20. Qc1 {[%emt 0:02:55]} a6 {[%emt 0:06:10]} (20... Bxf4 $11 {remains equal.} 21. Qxf4 a6) 21. Bxe5 $16 {[%emt 0:00:44]} Qxe5 {[%emt 0:00:01]} 22. Nc4 {[%emt 0:00:01]} Qc7 {[%emt 0:01:53]} (22... Bxc4 $16 23. Qxc4+ Kg7) 23. Nd6 {[%emt 0:01:19]} (23. dxe4 $18 fxe4 24. Nd6) 23... exd3 {[%emt 0:01:48]} 24. exd3 {[%emt 0:00:10]} Qc6 {[%emt 0:00:48] [#]} (24... a5 $16 {keeps fighting.}) 25. Qf4 $1 $18 {[%emt 0:00:42]} Qd5 $2 {[%emt 0:00:26]} (25... a5 26. Rfe1 (26. Qxd4 Qd5 $16) 26... axb4) 26. Rfe1 {[%emt 0:00:17] Black must now prevent Re7.} a5 {[%emt 0:00:33]} (26... Rad8 {might work better.} 27. Re7 b6) 27. Qe5 $2 {[%emt 0:01:55]} (27. Re5 $18 Qa2 28. Rbe1) 27... a4 $16 {[%emt 0:00:32][%cal Ba5a4,Ba4a3][%mdl 32]} 28. Nxf7 {[%emt 0:00:22] 0x0.00249b13221edp-1022s more active pieces.} (28. Ra1 $16) 28... Qxf7 $14 {[%emt 0:00:22]} 29. Qxd4 {[%emt 0:00:12]} a3 {[%emt 0:00:34]} 30. Ra1 {[%emt 0:00:35]} Rfd8 {[%emt 0:00:27]} 31. Qh4 {[%emt 0:00:54] Threatens to win with Re7.} Rd7 {[%emt 0:00:30] [#] Prevents Re7.} 32. Re2 {[%emt 0:00:27]} (32. b5 $1 $16) 32... Qg7 {[%emt 0:00:33]} (32... Kg7 $11) 33. Qc4+ $16 {[%emt 0:00:14]} Kh8 $2 {[%emt 0:00:01] [#] This move loses the game for Black.} (33... Qf7 $16) 34. Rxa3 $1 $18 {[%emt 0:00:21][%mdl 512]} Rad8 {[%emt 0:00:50]} (34... Rf8 35. b5) 35. Qe6 {[%emt 0:00:35]} h6 {[%emt 0:00:43]} (35... Qd4 $142 36. Qc4 Qxc4 37. dxc4 Kg7) 36. Qe5 {[%emt 0:00:17]} Qxe5 {[%emt 0:00:32]} 37. Rxe5 {[%emt 0:00:05]} Rxd3 $2 {[%emt 0:00:06]} (37... f4 38. gxf4 Kg7) 38. Rxd3 {[%emt 0:00:09]} Rxd3 {[%mdl 4096] Endgame KR-KR} 39. Re8+ {[%emt 0:00:17]} Kg7 {[%emt 0:00:02]} 40. Re7+ {[%emt 0:00:06]} Kf6 {[%emt 0:00:08]} 41. Rxb7 {[%emt 0:00:03]} Kg5 {[%emt 0:00:15]} (41... Rc3 $142 42. Rb6+ Kf7) 42. Kg2 {[%emt 0:00:30]} (42. c6 $142 Rc3 43. c7) 42... f4 {[%emt 0:00:30]} 43. gxf4+ {[%emt 0:00:24]} Kxf4 {[%emt 0:00:03]} 44. c6 {[%emt 0:00:48][%cal Bc5c6,Bc6c7][%mdl 32]} h5 {[%emt 0:00:17]} 45. Rb5 {[%emt 0:00:32] White mates.} h4 {[%emt 0:00:18]} 46. h3 {[%emt 0:00:26]} g5 {[%emt 0:00:25]} 47. c7 {[%emt 0:00:16]} Rc3 {[%emt 0:00:04]} 48. Rc5 {[%emt 0:00:04]} Ke4 {Weighted Error Value: White=0.50/Black=0.72} 1-0